bitfinex/quotes_SOLUSD_20250922
["timestamp","ask_amount","ask_price","bid_price","bid_amount"]
[1758524223234,0.68,224.45,224.39,35.96]
[1758524223431,0.68,224.44,224.39,35.96]
[1758524224004,0.68,224.43,224.39,35.96]
[1758524224509,42.33707561,224.48,224.4,0.37]
[1758524224923,43.01707561,224.48,224.4,0.37]
[1758524225123,4.45493829,224.47,224.41,13.59559401]
[1758524225322,4.45452891,224.5,224.42,5.57582791]
[1758524225633,4.45452891,224.5,224.42,13.99472029]
[1758524225808,0.68,224.54,224.43,13.96559401]
[1758524226012,0.68,224.54,224.44,41.51582791]
[1758524226309,4.45394619,224.52,224.45,13.96559401]
[1758524226632,5.13364456,224.54,224.46,26.78]
[1758524227305,16.26751825,224.54,224.46,26.78]
[1758524228825,5.13364456,224.54,224.47,0.37]
[1758524229214,4.45364456,224.54,224.47,0.37]
[1758524229414,31.2,224.55,224.47,0.37]
[1758524230131,5.88582791,224.54,224.44,13.59559401]
[1758524230332,15.58881168,224.52,224.45,35.92]
[1758524230522,16.26881168,224.52,224.45,35.92]
[1758524230922,5.13394619,224.52,224.45,35.92]
[1758524231829,16.26881168,224.52,224.45,215.0]
[1758524232130,16.26881168,224.52,224.46,35.92]
[1758524233315,16.26881168,224.52,224.45,215.0]
[1758524233515,0.71,224.51,224.45,215.0]
[1758524233823,0.71,224.5,224.46,35.92]
[1758524234026,0.71,224.49,224.46,35.92]
[1758524234217,0.71,224.49,224.46,250.92]
[1758524235107,4.45473984,224.48,224.46,250.92]
[1758524236334,4.45451586,224.5,224.46,250.92]
[1758524236537,31.2,224.52,224.47,26.78]
[1758524236831,0.71,224.55,224.48,5.57582791]
[1758524237006,0.71,224.55,224.49,35.9]
[1758524237210,4.45354947,224.54,224.49,35.9]
[1758524237414,11.13238633,224.57,224.49,35.9]
[1758524237415,4.45315283,224.56,224.5,5.57582791]
[1758524237641,4.45315283,224.56,224.51,0.37]
[1758524237819,4.45315283,224.56,224.52,36.27]
[1758524238221,0.71,224.55,224.5,5.20582791]
[1758524238434,0.71,224.55,224.51,35.9]
[1758524238657,4.45315283,224.56,224.51,35.9]
[1758524238938,4.45315283,224.56,224.51,36.27]
[1758524239326,4.45295453,224.57,224.51,36.27]
[1758524240320,4.45295453,224.57,224.51,40.72412041]
[1758524240720,4.45295453,224.57,224.51,257.72048514]
[1758524241841,0.2,224.58,224.52,13.96559401]
[1758524242143,4.65277427,224.58,224.52,13.96559401]
[1758524242327,4.65277427,224.58,224.53,35.88]
[1758524242648,0.71,224.6,224.58,75.94722573]
[1758524243142,0.71,224.59,224.58,111.82722573]
[1758524243524,0.71,224.59,224.58,75.94722573]
[1758524243725,5.16255799,224.59,224.58,111.82722573]
[1758524245750,4.45255799,224.59,224.58,111.82722573]
[1758524246548,0.71,224.64,224.59,75.94722573]
[1758524246746,0.71,224.63,224.6,35.88]
[1758524246936,0.7,224.62,224.6,35.88]
[1758524247136,0.7,224.61,224.6,35.88]
[1758524247755,5.15216152,224.61,224.6,35.88]
[1758524249454,5.15216152,224.61,224.59,75.94722573]
[1758524249634,15.58048432,224.64,224.6,35.86]
[1758524250234,0.7,224.63,224.6,35.86]
[1758524250744,0.7,224.62,224.6,35.86]
[1758524251051,15.58048432,224.64,224.6,35.86]
[1758524251052,5.15216152,224.61,224.6,35.86]
[1758524252469,26.0209917,224.69,224.6,112.17722573]
[1758524252470,4.45117065,224.66,224.6,112.17722573]
[1758524252839,4.45117065,224.66,224.61,1.99636473]
[1758524253142,4.45117065,224.66,224.62,35.86]
[1758524253341,16.27909729,224.66,224.62,35.86]
[1758524253537,0.7,224.65,224.6,75.94722573]
[1758524253738,0.7,224.65,224.61,35.84]
[1758524253938,31.2,224.63,224.6,75.94722573]
[1758524254146,2.69636473,224.62,224.6,75.94722573]
[1758524254551,0.7,224.61,224.6,75.94722573]
[1758524254755,0.7,224.61,224.59,35.84]
[1758524254941,1.99636473,224.62,224.59,35.84]
[1758524255147,5.15235975,224.6,224.59,35.84]
[1758524256136,31.2,224.57,224.5,75.94722573]
[1758524256343,31.9,224.57,224.51,35.84]
[1758524257058,31.9,224.57,224.52,35.84]
[1758524257356,15.58603491,224.56,224.52,35.84]
[1758524257741,4.45315283,224.56,224.53,0.37]
[1758524257936,4.45315283,224.56,224.54,35.84]
[1758524258945,4.45315283,224.56,224.5,77.94359046]
[1758524258946,0.7,224.55,224.5,75.94722573]
[1758524259266,0.7,224.55,224.51,35.84]
[1758524259461,31.2,224.53,224.5,75.94722573]
[1758524259763,0.7,224.52,224.51,35.84]
[1758524259967,31.2,224.53,224.51,35.84]
[1758524260146,31.9,224.53,224.51,35.84]
[1758524260548,31.9,224.53,224.45,0.37]
[1758524260752,0.7,224.52,224.46,35.82]
[1758524260966,15.58950603,224.51,224.47,35.82]
[1758524261271,16.28950603,224.51,224.43,0.37]
[1758524261441,16.28950603,224.51,224.44,35.82]
[1758524262753,15.58950603,224.51,224.44,37.81636473]
[1758524262955,15.58950603,224.51,224.45,0.37]
[1758524263461,4.45414458,224.51,224.46,35.82]
[1758524264545,4.4537574,224.53,224.47,13.59559401]
[1758524264750,4.45275625,224.58,224.51,1.99636473]
[1758524265053,4.45275625,224.58,224.54,1.99636473]
[1758524265257,4.45275625,224.58,224.55,35.82]
[1758524265973,11.13185846,224.59,224.55,35.82]
[1758524266159,11.83185846,224.59,224.55,35.82]
[1758524266362,11.83185846,224.59,224.56,35.82]
[1758524266674,11.13185846,224.59,224.56,111.76722573]
[1758524267765,4.45295453,224.57,224.56,111.76722573]
[1758524269269,4.45295453,224.57,224.56,75.94722573]
[1758524269575,4.45077443,224.68,224.56,119.65664524]
[1758524269772,4.45136879,224.65,224.6,7.51941951]
[1758524270076,5.15136879,224.65,224.61,35.82]
[1758524270263,4.45136879,224.65,224.61,246.16722573]
[1758524270774,5.15136879,224.65,224.61,246.16722573]
[1758524271266,0.7,224.64,224.62,35.8]
[1758524271862,4.45176512,224.63,224.62,35.8]
[1758524272373,5.15176512,224.63,224.62,35.8]
[1758524272973,5.15176512,224.63,224.61,210.34722573]
[1758524273153,4.45176512,224.63,224.62,35.8]
[1758524273354,4.45176512,224.63,224.62,111.74722573]
[1758524273774,5.15176512,224.63,224.62,111.74722573]
[1758524276386,4.45176512,224.63,224.62,111.74722573]
[1758524276555,4.45117065,224.66,224.62,111.74722573]
[1758524276856,4.45117065,224.66,224.62,112.11722573]
[1758524277265,4.45117065,224.66,224.62,111.74722573]
[1758524278370,4.65058795,224.69,224.63,27.15]
[1758524278574,4.65058795,224.69,224.64,35.78]
[1758524278775,4.65058795,224.69,224.65,0.37]
[1758524278990,4.65058795,224.69,224.66,35.78]
[1758524279690,4.65058795,224.69,224.66,36.15]
[1758524280663,4.65058795,224.69,224.63,27.15]
[1758524280965,15.77702882,224.69,224.64,35.78]
[1758524281162,16.49702882,224.69,224.63,27.15]
[1758524281358,16.49702882,224.69,224.65,35.78]
[1758524281968,16.49702882,224.69,224.66,35.78]
[1758524282661,5.37058795,224.69,224.66,35.78]
[1758524282982,5.37058795,224.69,224.68,7.51941951]
[1758524282983,0.2,224.69,224.68,7.51941951]
[1758524283185,0.2,224.69,224.68,43.66941951]
[1758524283483,0.2,224.69,224.68,119.61664524]
[1758524283788,0.2,224.69,224.68,133.21223925]
[1758524285865,0.2,224.69,224.68,298.84301368]
[1758524286559,0.2,224.69,224.68,160.03635313]
[1758524287065,0.2,224.72,224.71,115.92281974]
[1758524287267,0.2,224.72,224.71,79.24835297]
[1758524287464,0.2,224.75,224.74,71.57559401]
[1758524287684,0.03,224.75,224.74,114.00607054]
[1758524287979,0.03,224.75,224.74,110.44835297]
[1758524288182,0.03,224.75,224.74,113.56111193]
[1758524288393,0.03,224.75,224.74,118.01069811]
[1758524288684,0.03,224.75,224.74,126.78761337]
[1758524288887,0.03,224.75,224.74,91.02761337]
[1758524289074,0.03,224.75,224.74,126.78761337]
[1758524289575,0.03,224.75,224.74,140.17761337]
[1758524289978,0.2,224.81,224.77,53.76559401]
[1758524289979,1e-08,224.78,224.77,53.76559401]
[1758524290166,1e-08,224.78,224.77,61.71170983]
[1758524290363,0.2,224.81,224.77,61.71170983]
[1758524290364,0.2,224.81,224.8,44.82399258]
[1758524290584,0.2,224.81,224.8,88.51004902]
[1758524290767,0.2,224.81,224.8,88.06520917]
[1758524291763,0.2,224.85,224.84,40.37559401]
[1758524291987,0.2,224.85,224.84,83.6168106]
[1758524292573,0.2,224.85,224.84,88.06441778]
[1758524293064,0.2,224.87,224.85,75.34722573]
[1758524293264,0.2,224.87,224.86,43.24121659]
[1758524294489,0.2,224.87,224.86,74.32779511]
[1758524294785,0.2,224.87,224.86,69.88058352]
[1758524295288,0.2,224.87,224.86,26.63936693]
[1758524295493,0.2,224.87,224.86,231.48530467]
[1758524295788,0.2,224.87,224.86,96.64058352]
[1758524296475,0.2,224.92,224.91,55.37802719]
[1758524296670,0.2,224.92,224.91,95.54425012]
[1758524296978,0.2,224.92,224.91,88.04303353]
[1758524299394,0.2,224.92,224.91,13.59559401]
[1758524299570,0.2,224.92,224.91,56.8168106]
[1758524299778,0.2,224.92,224.91,49.31559401]
[1758524300087,0.2,224.92,224.91,56.8168106]
[1758524300678,5.3360456,224.92,224.87,13.59559401]
[1758524300879,0.69,224.91,224.89,13.59559401]
[1758524301076,4.6460456,224.92,224.9,35.7]
[1758524301684,4.6460456,224.92,224.87,7.50121659]
[1758524301685,0.69,224.91,224.88,13.59559401]
[1758524301892,0.69,224.91,224.89,35.7]
[1758524302083,0.69,224.9,224.89,35.7]
[1758524303586,4.44661834,224.89,224.86,13.04377292]
[1758524303781,0.69,224.88,224.87,35.7]
[1758524305596,0.69,224.88,224.87,43.20121659]
[1758524306486,0.69,224.88,224.87,69.98121659]
[1758524306886,0.67,224.88,224.87,69.98121659]
[1758524308199,0.67,224.88,224.87,35.7]
[1758524308399,0.67,224.88,224.82,26.78]
[1758524308600,0.67,224.87,224.83,35.7]
[1758524308898,0.67,224.86,224.84,35.7]
[1758524309101,0.67,224.86,224.78,96.44403633]
[1758524309102,5.11740938,224.85,224.81,13.39000751]
[1758524309403,0.67,224.84,224.82,35.7]
[1758524309583,0.67,224.84,224.83,35.7]
[1758524311386,0.67,224.87,224.83,35.7]
[1758524311603,15.5624722,224.9,224.83,35.7]
[1758524311794,0.67,224.9,224.88,7.50121659]
[1758524312103,0.2,224.92,224.89,35.7]
[1758524312307,4.64603644,224.92,224.9,7.50121659]
[1758524312606,0.2,224.92,224.91,35.7]
[1758524313111,0.2,224.92,224.91,76.07559401]
[1758524313308,0.2,224.92,224.91,40.37559401]
[1758524313503,0.2,224.92,224.91,76.07559401]
[1758524314305,0.2,224.92,224.91,80.52181694]
[1758524314797,0.2,224.92,224.91,76.07559401]
[1758524315992,0.87,224.92,224.91,47.8768106]
[1758524316307,0.87,224.92,224.91,83.5768106]
[1758524316690,0.2,224.92,224.91,83.5768106]
[1758524316885,0.2,224.92,224.91,88.02303353]
[1758524317291,0.2,224.92,224.91,95.52425012]
[1758524318402,0.2,224.92,224.91,59.82425012]
[1758524318714,0.2,224.92,224.91,96.10887241]
[1758524318908,0.2,224.92,224.91,95.66425012]
[1758524319888,1e-08,224.92,224.91,109.05425012]
[1758524320503,1e-08,224.92,224.91,95.66425012]
[1758524321886,1e-08,224.92,224.91,88.10303353]
[1758524322287,1e-08,224.92,224.91,95.60425012]
[1758524322706,1e-08,224.92,224.91,59.82425012]
[1758524322911,1e-08,224.92,224.91,60.26887241]
[1758524323120,0.2,224.95,224.94,71.57559401]
[1758524323334,0.2,224.95,224.94,115.24137359]
[1758524323628,0.2,224.95,224.94,190.14403633]
[1758524323918,0.2,224.95,224.94,194.58966627]
[1758524325602,0.2,224.95,224.94,194.64944208]
[1758524326203,0.2,224.95,224.94,194.60944208]
[1758524326708,0.2,224.95,224.94,158.92944208]
[1758524326999,0.87,224.95,224.94,115.78259555]
[1758524327215,0.87,224.95,224.94,151.48259555]
[1758524327793,0.87,224.95,224.94,76.13536982]
[1758524329229,0.87,224.95,224.94,40.43536982]
[1758524329428,0.87,224.95,224.94,35.73977581]
[1758524329603,0.87,224.95,224.94,0.05977581]
[1758524329929,5.31543231,224.95,224.94,35.68]
[1758524330731,0.87,224.95,224.94,35.68]
[1758524331215,0.87,224.95,224.94,76.05559401]
[1758524332621,0.87,224.95,224.94,81.23404995]
[1758524332810,0.87,224.95,224.87,26.78]
[1758524333016,0.67,224.94,224.91,26.78]
[1758524333216,4.64543231,224.95,224.93,26.78]
[1758524333414,0.2,224.95,224.94,35.68]
[1758524333618,0.2,224.95,224.94,81.23404995]
[1758524333811,0.87,224.95,224.94,81.23404995]
[1758524334014,0.2,224.95,224.94,81.23404995]
[1758524334321,0.87,224.95,224.94,81.23404995]
[1758524334646,0.2,224.95,224.94,85.67967989]
[1758524335309,0.2,224.95,224.94,85.73967989]
[1758524338630,0.2,224.95,224.94,99.12967989]
[1758524340734,0.2,225.03,225.0,40.37559401]
[1758524340932,0.2,225.03,225.02,45.55404995]
[1758524341828,0.89,225.03,225.02,45.55404995]
[1758524342747,0.89,225.03,225.02,40.37559401]
[1758524342946,0.89,225.03,225.02,76.05559401]
[1758524343633,0.89,225.03,225.02,62.46]
[1758524343814,5.33385193,225.03,225.01,26.78]
[1758524344013,4.64385193,225.03,225.02,62.46]
[1758524344427,5.33385193,225.03,225.02,62.46]
[1758524344935,5.33385193,225.03,224.99,26.78]
[1758524344936,16.44348175,225.03,224.99,26.78]
[1758524345235,0.69,225.02,225.0,35.68]
[1758524345436,0.69,225.02,224.93,74.22722573]
[1758524345437,36.37845594,225.01,224.93,74.22722573]
[1758524345642,5.17845594,224.98,224.94,35.68]
[1758524345829,5.17845594,224.98,224.95,35.68]
[1758524346033,4.4452347,224.96,224.95,35.68]
[1758524346227,5.1352347,224.96,224.95,35.68]
[1758524346743,16.24832147,224.96,224.95,35.68]
[1758524347251,16.24832147,224.96,224.87,74.22722573]
[1758524347252,21.42677741,224.96,224.87,74.22722573]
[1758524347427,0.69,224.95,224.85,13.59559401]
[1758524347627,0.69,224.94,224.86,35.68]
[1758524347950,58.09925965,225.03,224.94,13.59559401]
[1758524347951,0.06936805,224.99,224.94,13.59559401]
[1758524348126,0.2,225.03,224.99,5.17845594]
[1758524348324,0.2,225.03,225.0,36.12]
[1758524348749,4.64400117,225.03,225.0,36.12]
[1758524350146,4.44424692,225.01,225.0,36.12]
[1758524350321,5.13424692,225.01,225.0,36.12]
[1758524351450,5.13424692,225.01,224.92,35.64584563]
[1758524351451,5.13424692,225.01,224.85,5.17845594]
[1758524351628,31.2,224.98,224.88,18.77404995]
[1758524351835,0.72,224.99,224.94,5.17845594]
[1758524352130,5.16424692,225.01,224.95,36.06]
[1758524353327,10.34270286,225.01,224.95,36.06]
[1758524353770,21.45332016,225.01,224.95,36.06]
[1758524353969,21.45332016,225.01,224.9,18.04199108]
[1758524353970,21.45332016,225.01,224.96,36.04]
[1758524354265,5.17845594,224.97,224.92,36.04]
[1758524354442,31.92,225.0,224.93,36.04]
[1758524354443,5.17845594,224.94,224.93,36.04]
[1758524354632,5.89845594,224.94,224.93,36.04]
[1758524355040,5.17845594,224.94,224.93,36.04]
[1758524355448,5.17845594,224.94,224.84,0.71]
[1758524355449,5.89845594,224.94,224.84,0.71]
[1758524355671,5.17845594,224.92,224.85,13.59559401]
[1758524355845,0.72,224.91,224.85,13.59559401]
[1758524356166,250.0,225.01,224.9,18.77404995]
[1758524356465,254.44427715,225.01,224.95,13.59559401]
[1758524356667,254.44427715,225.01,224.96,37.21]
[1758524357354,254.44427715,225.01,224.97,26.78]
[1758524358175,250.0,225.01,224.97,26.78]
[1758524358663,254.44425819,225.01,224.97,26.78]
[1758524358866,255.16425819,225.01,224.97,26.78]
[1758524359774,250.72,225.01,224.97,26.78]
[1758524359949,250.0,225.01,224.97,26.78]
[1758524360453,250.72,225.01,224.98,63.22]
[1758524360851,255.16429116,225.01,224.98,63.22]
[1758524361282,250.72,225.01,224.98,63.22]
[1758524361566,0.72,225.0,224.98,63.22]
[1758524361758,254.44430524,225.01,225.0,79.88]
[1758524363785,254.69430524,225.01,225.0,79.88]
[1758524366067,254.69430524,225.01,224.96,36.34]
[1758524366068,265.80492254,225.01,224.96,36.34]
[1758524366268,5.17845594,224.98,224.94,36.34]
[1758524366573,0.25,224.97,224.94,116.22]
[1758524366769,5.17845594,224.98,224.94,116.22]
[1758524367178,250.0,225.01,224.94,116.22]
[1758524367372,254.44427473,225.01,224.94,143.68]
[1758524368488,254.44427473,225.01,224.95,0.68]
[1758524368680,254.44427473,225.01,224.96,36.28]
[1758524368886,254.44427473,225.01,224.97,0.68]
[1758524369077,254.44427473,225.01,224.98,36.36]
[1758524369770,0.25,225.0,224.98,36.36]
[1758524369971,4.44464198,224.99,224.98,36.36]
[1758524370168,15.80624694,224.99,224.94,106.66]
[1758524370390,5.17845594,224.96,224.94,116.2]
[1758524370568,0.25,224.95,224.94,116.2]
[1758524370762,0.25,224.95,224.94,79.88]
[1758524371078,5.17845594,224.96,224.92,36.32]
[1758524371272,0.25,224.98,224.92,36.32]
[1758524371273,5.42845594,224.98,224.92,36.32]
[1758524371590,5.17845594,224.98,224.92,37.0]
[1758524371991,250.0,225.01,224.96,26.73]
[1758524372199,250.0,225.01,224.97,63.93]
[1758524372200,254.44424974,225.01,224.97,63.93]
[1758524372488,254.44424974,225.01,224.98,0.68]
[1758524372675,254.44424974,225.01,224.99,36.54]
[1758524372880,254.44424974,225.01,224.99,37.22]
[1758524373088,254.44424974,225.01,224.99,36.54]
[1758524374100,4.44464198,224.99,224.98,36.5]
[1758524375276,0.25,225.0,224.98,36.5]
[1758524375482,254.44425954,225.01,224.98,36.5]
[1758524377397,265.55487684,225.01,224.98,250.78]
[1758524378385,0.25,225.0,224.98,250.78]
[1758524378688,5.42845594,225.0,224.98,250.78]
[1758524378890,31.45,224.99,224.98,79.88]
[1758524379308,35.89464198,224.99,224.98,79.88]
[1758524379606,41.07309792,224.99,224.98,79.88]
[1758524381299,40.82309792,224.99,224.98,79.88]
[1758524382592,9.62292113,225.0,224.98,79.88]
[1758524382796,4.44446519,225.0,224.98,79.88]
[1758524383207,4.44446519,225.0,224.98,214.28]
[1758524383412,9.62292113,225.0,224.98,214.28]
[1758524383592,9.87292113,225.0,224.98,214.28]
[1758524383908,5.17845594,224.99,224.98,214.28]
[1758524384310,5.42845594,224.99,224.98,214.28]
[1758524384495,36.62845594,224.99,224.98,214.28]
[1758524385199,36.37845594,224.99,224.98,214.28]
[1758524385718,40.82309792,224.99,224.98,214.28]
[1758524388186,41.07309792,224.99,224.98,214.28]
[1758524389004,41.07309792,224.99,224.98,79.88]
[1758524389396,40.82309792,224.99,224.98,79.88]
[1758524390202,41.52309792,224.99,224.98,79.88]
[1758524390618,43.84224497,224.99,224.98,79.88]
[1758524391504,43.14224497,224.99,224.98,79.88]
[1758524391704,43.84224497,224.99,224.98,79.88]
[1758524392020,46.83709926,224.99,224.98,79.88]
[1758524392593,46.13709926,224.99,224.98,79.88]
[1758524392800,47.2499306,224.99,224.98,79.88]
[1758524393816,31.2,224.96,224.89,0.68]
[1758524394019,7.49760299,224.9,224.89,0.68]
[1758524395316,7.49760299,224.9,224.87,116.68]
[1758524395514,4.44661834,224.89,224.88,0.68]
[1758524395718,4.44661834,224.89,224.87,116.0]
[1758524396206,4.44661834,224.89,224.88,0.68]
[1758524396913,4.44661834,224.89,224.88,36.74]
[1758524397619,4.44642063,224.9,224.88,36.74]
[1758524397820,4.44642063,224.9,224.88,36.06]
[1758524398525,4.44642063,224.9,224.88,36.74]
[1758524400205,4.44642063,224.9,224.88,116.62]
[1758524400534,31.2,224.89,224.84,0.68]
[1758524400709,7.49760299,224.86,224.84,57.42202514]
[1758524400905,0.66,224.85,224.84,29.76446018]
[1758524401129,0.66,224.85,224.78,0.68]
[1758524401130,31.2,224.83,224.81,29.76446018]
[1758524401309,31.2,224.82,224.81,29.76446018]
[1758524401518,31.2,224.87,224.81,30.44446018]
[1758524401716,4.44721159,224.86,224.82,36.68]
[1758524402017,4.44721159,224.86,224.83,0.68]
[1758524402209,7.49760299,224.85,224.83,36.7]
[1758524402402,15.56524058,224.86,224.83,36.02]
[1758524402603,15.56524058,224.86,224.84,0.68]
[1758524403013,7.49760299,224.85,224.81,164.84446018]
[1758524403221,7.49760299,224.83,224.81,200.84446018]
[1758524403529,15.56524058,224.86,224.82,0.68]
[1758524403530,7.49760299,224.85,224.82,0.68]
[1758524403857,15.56662514,224.84,224.82,0.68]
[1758524404008,4.44760718,224.84,224.81,164.16446018]
[1758524404208,4.44760718,224.84,224.82,36.68]
[1758524404424,7.49760299,224.83,224.82,36.0]
[1758524404728,7.49760299,224.83,224.81,164.16446018]
[1758524404931,31.2,224.85,224.82,0.68]
[1758524405232,31.2,224.86,224.83,0.68]
[1758524405443,31.2,224.86,224.81,164.16446018]
[1758524405735,4.44800284,224.82,224.81,164.16446018]
[1758524406108,31.86,224.91,224.81,0.68]
[1758524406349,23.69192023,224.94,224.81,66.58446018]
[1758524406350,31.2,224.83,224.81,66.58446018]
[1758524406622,31.2,224.83,224.82,0.68]
[1758524406839,38.69760299,224.86,224.82,30.44446018]
[1758524407135,38.69760299,224.86,224.83,0.68]
[1758524407338,31.2,224.86,224.84,0.68]
[1758524407544,18.61316032,224.91,224.84,66.56446018]
[1758524407723,7.49760299,224.85,224.84,29.76446018]
[1758524408033,7.49760299,224.85,224.81,0.68]
[1758524408234,7.49760299,224.85,224.79,65.88446018]
[1758524408235,7.49760299,224.85,224.82,0.68]
[1758524408433,7.49760299,224.85,224.81,36.12]
[1758524408635,7.49760299,224.85,224.83,0.68]
[1758524409027,7.49760299,224.87,224.84,0.68]
[1758524409534,46.76385626,224.88,224.83,36.1]
[1758524409535,31.2,224.86,224.85,0.68]
[1758524409830,46.76457384,224.87,224.83,36.1]
[1758524410044,7.49760299,224.84,224.81,30.44446018]
[1758524410410,7.49760299,224.84,224.81,29.76446018]
[1758524410618,7.49760299,224.84,224.81,30.44446018]
[1758524410824,7.49760299,224.82,224.81,29.76446018]
[1758524411026,7.49760299,224.82,224.78,0.66]
[1758524411239,7.49760299,224.79,224.77,36.06]
[1758524411438,7.49760299,224.78,224.75,30.52446018]
[1758524411618,7.49760299,224.76,224.75,0.1]
[1758524411816,11.94679323,224.76,224.75,0.1]
[1758524412430,12.62679323,224.76,224.75,0.1]
[1758524412732,23.74976884,224.76,224.7,0.1]
[1758524412934,7.49760299,224.71,224.7,0.1]
[1758524413824,11.94778322,224.71,224.7,0.1]
[1758524414336,7.49760299,224.71,224.7,0.1]
[1758524414533,75.51760299,224.71,224.7,1e-08]
[1758524414738,39.37760299,224.71,224.7,1e-08]
[1758524414923,15.57367401,224.74,224.7,1e-08]
[1758524415240,38.69760299,224.71,224.7,1e-08]
[1758524415640,31.2,224.71,224.7,1e-08]
[1758524415943,4.44840959,224.8,224.7,36.82000001]
[1758524416124,4.44840959,224.8,224.71,0.66]
[1758524416821,11.94601258,224.8,224.71,0.66]
[1758524417017,7.49760299,224.78,224.71,0.66]
[1758524417233,7.49760299,224.78,224.71,37.22]
[1758524417429,7.49760299,224.76,224.71,0.66]
[1758524417833,4.4493882,224.75,224.72,0.66]
[1758524418326,4.4493882,224.75,224.7,36.54000001]
[1758524418637,11.94683415,224.76,224.73,0.66]
[1758524418863,35.64904549,224.77,224.73,0.66]
[1758524419036,35.64904549,224.77,224.7,36.54000001]
[1758524419239,4.44867112,224.79,224.74,0.66]
[1758524419636,4.44867112,224.79,224.75,0.66]
[1758524419836,7.49760299,224.82,224.76,0.66]
[1758524420041,4.44760718,224.84,224.76,0.66]
[1758524420220,11.94521017,224.84,224.76,0.66]
[1758524420425,54.26422813,224.84,224.76,0.66]
[1758524420624,28.26,224.87,224.76,0.66]
[1758524420625,7.49760299,224.87,224.76,0.66]
[1758524420839,7.49760299,224.87,224.76,5.10909614]
[1758524421150,4.44642063,224.9,224.79,26.73]
[1758524421351,4.44642063,224.9,224.78,13.59559401]
[1758524421352,11.94343058,224.93,224.81,47.823197]
[1758524421642,7.49760299,224.91,224.83,26.73]
[1758524421850,0.68,224.93,224.84,0.66]
[1758524422147,7.49760299,224.95,224.85,4.44740938]
[1758524422347,4.44444444,225.0,224.87,40.32559401]
[1758524422536,7.49760299,224.98,224.89,13.59559401]
[1758524422851,7.49760299,224.96,224.9,0.66]
[1758524423363,7.49760299,224.96,224.85,36.54]
[1758524423364,7.49760299,224.92,224.85,36.54]
[1758524423645,7.49760299,224.9,224.85,37.2]
[1758524423825,7.49760299,224.9,224.86,0.66]
[1758524424026,4.44661834,224.89,224.86,0.66]
[1758524424249,4.44661834,224.89,224.87,0.66]
[1758524424547,4.44639956,224.91,224.85,36.54]
[1758524424853,10.94400255,224.91,224.85,37.2]
[1758524425140,22.05955988,224.91,224.85,0.66]
[1758524425344,22.05955988,224.91,224.85,37.16]
[1758524425552,7.49760299,224.89,224.83,37.22]
[1758524425760,3.44639956,224.91,224.84,0.66]
[1758524426250,7.49760299,224.89,224.84,37.18]
[1758524426438,7.49760299,224.89,224.85,0.66]
[1758524426636,8.17760299,224.89,224.81,0.66]
[1758524426938,7.49760299,224.87,224.81,0.67]
[1758524427533,31.2,224.89,224.81,0.67]
[1758524427740,38.69760299,224.89,224.81,0.67]
[1758524427951,31.2,224.89,224.81,0.67]
[1758524428258,11.94441906,224.88,224.81,0.67]
[1758524428449,23.06145925,224.88,224.81,0.67]
[1758524428954,7.49760299,224.86,224.81,0.67]
[1758524429154,15.56385626,224.88,224.81,0.67]
[1758524429351,7.49760299,224.87,224.81,0.67]
[1758524429739,7.49760299,224.83,224.77,0.67]
[1758524430035,4.44839857,224.8,224.77,0.67]
[1758524430246,4.44839857,224.8,224.74,13.59559401]
[1758524430247,7.49760299,224.79,224.74,37.15]